[Event "MPL-4 Indian Chess Tour 2022"]
[Site "Chess24"]
[Date "2022.09.27"]
[Round "12.6"]
[White "Aditya Mittal"]
[Black "Aronyak Ghosh"]
[Result "1/2-1/2"]
[ECO "A34"]
[WhiteElo "2485"]
[BlackElo "2519"]
[Annotator "TA"]
[PlyCount "130"]
[EventDate "2022.09.29"]
[EventType "tourn (rapid)"]
[EventCountry "NET"]
[SourceTitle "playchess.com"]
[Source "ChessBase"]
[SourceQuality "1"]
[WhiteTeam "India"]
[BlackTeam "India"]
[WhiteTeamCountry "IND"]
[BlackTeamCountry "IND"]
[TimeControl "900+10"]

{[%evp 9,130,12,29,34,31,26,31,23,33,34,39,39,35,33,31,22,26,29,33,6,3,15,56,55,60,45,36,27,137,138,125,128,204,199,192,210,164,177,154,159,158,106,110,118,118,66,86,59,51,16,18,0,0,0,13,7,7,-6,0,-9,-8,-15,-6,-39,-39,-39,-39,-39,0,0,0,-14,0,0,0,0,0,-11,-16,-31,-16,-16,0,-11,0,-191,-198,-369,-362,-303,-257,-240,-83,-229,-13,-239,0,0,0,0,0,0,0,0,0,0,0,0,0,0,0,0,0,0,0,0,0,0,0,0,0,0,0]} 1. c4 {[%emt 0:00:00]} c5 {[%emt 0:00:00]} 2. Nf3 {[%emt 0:00:02]} Nf6 {[%emt 0:00:02]} 3. Nc3 {[%emt 0:00:01]} e6 {[%emt 0:00:04]} 4. g3 {[%emt 0:00:01]} Nc6 {[%emt 0:00:02]} 5. Bg2 {[%emt 0:00:00]} Qb6 {[%emt 0:00:01]} 6. e4 {[%emt 0:00:03] A34: Symmetrical English: 2 Nc3, lines with ...d5.} d6 {[%emt 0:00:45]} 7. O-O {[%emt 0:00:03]} Be7 {[%emt 0:01:11]} 8. d3 {[%emt 0:00:03] White is slightly better.} Bd7 {[%emt 0:00:31]} 9. Rb1 {[%emt 0:00:22]} O-O {[%emt 0:01:31]} 10. a3 {[%emt 0:00:02]} a5 {[%emt 0:00:08]} 11. b3 {[%emt 0:00:02][%cal Bb2b3,Bb3b4,Bb4a5][%mdl 32] [#]} Ne8 $146 {[%emt 0:01:44]} ({Predecessor:} 11... Nd4 12. Nxd4 cxd4 13. Ne2 e5 14. h3 Qd8 15. f4 b5 16. g4 bxc4 17. bxc4 Bc6 {0-1 (33) Tseitlin,M (2445)-Cvitan,O (2541) Biel 2000}) 12. Be3 {[%emt 0:00:55]} Bf6 {[%emt 0:00:21] Inhibits d4.} 13. Nb5 {[%emt 0:01:00][%cal Ob3b4]} Nd4 {[%emt 0:01:43]} 14. Nbxd4 {[%emt 0:01:01]} cxd4 {[%emt 0:00:02]} 15. Bd2 {[%emt 0:00:10]} Qd8 {[%emt 0:00:25]} 16. b4 {[%emt 0:01:18]} b5 {[%emt 0:00:11]} 17. bxa5 {[%emt 0:00:33]} (17. e5 $5 dxe5 18. Qe2 $11) 17... bxc4 {[%emt 0:00:02]} 18. dxc4 {[%emt 0:00:01][%cal Oe4e5]} Bc6 {[%emt 0:00:26]} (18... e5 $1 $11 {keeps the balance.}) 19. Re1 $36 {[%emt 0:00:21][%mdl 2048] Keeping Black busy.} e5 {[%emt 0:01:00]} 20. Rb6 {[%emt 0:02:10] White is more active.} Qd7 {[%emt 0:00:03] [#]} (20... Bd7 $16 {was worth a try.}) 21. Nxd4 $1 $18 {[%emt 0:01:24][%cal Bf3d4,Bd4f5,Bf5e3][%mdl 544]} Ba4 {[%emt 0:00:43]} 22. Qb1 {[%emt 0:01:13]} Bd8 {[%emt 0:01:35]} (22... exd4 $2 23. e5 Rc8 24. exf6 Nxf6 25. a6 $18) 23. Rb7 {[%emt 0:00:13]} Qc8 {[%emt 0:00:15]} 24. Nf5 {[%emt 0:00:23]} Bc6 {[%emt 0:00:31] [#]} 25. Rb3 {[%emt 0:00:42]} ({White should play} 25. Rb6 $1) 25... g6 $16 {[%emt 0:00:12]} 26. Ne3 {[%emt 0:00:34]} Bxa5 {[%emt 0:00:05]} 27. Bxa5 {[%emt 0:00:16]} (27. Bb4 $16) 27... Rxa5 $14 {[%emt 0:00:00]} 28. Qd3 {[%emt 0:01:26]} Qc7 {[%emt 0:01:18]} 29. Reb1 {[%emt 0:00:30]} Nf6 {[%emt 0:00:06]} 30. Nd5 {[%emt 0:00:48]} Bxd5 {[%emt 0:00:02]} 31. cxd5 {[%emt 0:00:06]} Rfa8 {[%emt 0:00:54]} 32. Qf3 {[%emt 0:00:03]} Kg7 {[%emt 0:00:13]} (32... Nd7 {looks sharper.} 33. Rb7 Qc2 34. R1b3 R8a7) 33. g4 {[%emt 0:01:21]} R8a7 {[%emt 0:00:29]} 34. h4 {[%emt 0:00:15]} h6 {[%emt 0:00:27]} 35. h5 {[%emt 0:00:38]} g5 {[%emt 0:00:14][%mdl 1024] Black has compensation.} 36. Rc3 {[%emt 0:01:13]} Qd7 {[%emt 0:00:07]} 37. Bh3 {[%emt 0:00:12]} Ra4 {[%emt 0:00:07]} 38. Re1 {[%emt 0:00:41]} Rc7 {[%emt 0:00:18]} 39. Rxc7 {[%emt 0:00:29]} Qxc7 {[%emt 0:00:00]} 40. Re3 {[%emt 0:00:20]} Qc5 {[%emt 0:00:23]} 41. Kh2 {[%emt 0:00:13]} Rc4 {[%emt 0:00:12]} 42. Qf5 {[%emt 0:00:28] Hoping for Rf3.} Qa7 {[%emt 0:00:10]} 43. Qf3 {[%emt 0:00:18]} Rc2 {[%emt 0:00:03]} 44. Kg2 {[%emt 0:00:12]} Ra2 {[%emt 0:00:08]} 45. Kg3 {[%emt 0:00:08]} Qd4 {[%emt 0:00:05]} 46. Bf1 {[%emt 0:00:05]} Ra1 {[%emt 0:00:08]} 47. Kg2 {[%emt 0:00:03]} (47. Bg2 $11) 47... Qb2 $19 {[%emt 0:00:35] Strongly threatening ...Qc1.} 48. Qe2 $2 {[%emt 0:00:15] [#]} (48. Be2) 48... Qb1 $1 {[%emt 0:00:02]} 49. Qd3 {[%emt 0:00:08]} ({Not} 49. f3 Ra2 50. a4 Nd7 $19) 49... Qc1 {[%emt 0:00:35]} 50. Qc4 {[%emt 0:00:27]} Qd1 {[%emt 0:00:36]} (50... Nxg4 51. Qxc1 Rxc1 52. Rb3) (50... Qxc4 $19 {and Black stays clearly on top.} 51. Bxc4 Nxg4) 51. Qe2 {[%emt 0:00:02]} (51. f3 $17) 51... Qa4 $2 {[%emt 0:00:16]} (51... Nxg4 $19 52. Rg3 Nf6 53. Qxd1 Rxd1) 52. Qc4 $2 {[%emt 0:00:04] [#]} (52. Kg3 $11) 52... Rxa3 $2 {[%emt 0:00:07]} ({Weaker is} 52... Qd1 53. f3 $15) ({Better is} 52... Qxc4 $1 $19 53. Bxc4 Nxg4) 53. Qxa4 $11 {[%emt 0:00:06] The position is equal.} Rxa4 $19 {[%emt 0:00:00][%mdl 4096] Endgame KRB-KRN} 54. f3 {[%emt 0:00:04]} Ra2+ {[%emt 0:00:24]} 55. Re2 {[%emt 0:00:13]} Rxe2+ {[%emt 0:00:03]} 56. Bxe2 $11 {[%emt 0:00:00] KB-KN} Kf8 {[%emt 0:00:01]} 57. Kf2 {[%emt 0:00:02]} Ke7 {[%emt 0:00:00]} 58. Ke3 {[%emt 0:00:01]} Kd7 {[%emt 0:00:01]} 59. Kd3 {[%emt 0:00:06]} Kc7 {[%emt 0:00:01]} 60. Kc3 {[%emt 0:00:03]} Kb6 {[%emt 0:00:00]} 61. Kb4 {[%emt 0:00:05]} Nd7 {[%emt 0:00:03]} 62. Bf1 {[%emt 0:00:10]} Nc5 {[%emt 0:00:10]} 63. Be2 {[%emt 0:00:06]} Nd7 {[%emt 0:00:16]} 64. Bc4 {[%emt 0:00:04]} Nc5 {[%emt 0:00:06]} 65. Be2 {[%emt 0:00:02]} Nd7 {[%emt 0:00:01] Never resign too early!  Weighted Error Value: White=0.28 (precise) /Black=0.21 (precise)} 1/2-1/2

[Event "MPL-4 Indian Chess Tour 2022"]
[Site "Chess24"]
[Date "2022.09.27"]
[Round "12.7"]
[White "Sethuraman, S.P."]
[Black "Bharath Subramaniyam H"]
[Result "0-1"]
[ECO "B51"]
[WhiteElo "2638"]
[BlackElo "2495"]
[Annotator "TA"]
[PlyCount "98"]
[EventDate "2022.09.29"]
[EventType "tourn (rapid)"]
[EventCountry "NET"]
[SourceTitle "playchess.com"]
[Source "ChessBase"]
[SourceQuality "1"]
[WhiteTeam "India"]
[BlackTeam "India"]
[WhiteTeamCountry "IND"]
[BlackTeamCountry "IND"]
[TimeControl "900+10"]

{[%evp 9,97,17,32,8,6,0,6,26,31,12,23,4,44,25,21,20,26,31,32,36,34,25,29,22,27,16,9,0,6,0,0,0,33,32,24,5,5,5,5,5,22,0,11,19,27,10,10,6,9,0,0,0,0,0,0,0,0,-63,-63,-63,-63,-63,-63,-63,-63,-71,-68,-79,-70,-128,-68,-68,-68,-194,-170,-298,-272,-29961,-29963,-29970,-29972,-29969,-29972,-29971,-29973,-29997,-29998,-29998,-29999,-29999]} 1. e4 {[%emt 0:00:00]} c5 {[%emt 0:00:00]} 2. Nf3 {[%emt 0:00:02]} d6 {[%emt 0:00:03]} 3. Bb5+ {[%emt 0:00:09]} Nd7 {[%emt 0:00:30]} 4. d4 {[%emt 0:00:02]} cxd4 {[%emt 0:00:03]} 5. Qxd4 {[%emt 0:00:00]} Ngf6 {[%emt 0:00:14]} 6. O-O {[%emt 0:00:36] B51: Sicilian: Moscow Variation (3 Bb5+) without 3...Bd7.} a6 {[%emt 0:01:04]} (6... g6 {seems wilder.} 7. e5 dxe5 8. Qxe5 a6) 7. Be2 {[%emt 0:00:11]} g6 {[%emt 0:00:13]} (7... e5 $5 {[%cal Re5d4]} 8. Qe3 Be7 $11) 8. Nc3 {[%emt 0:00:10] The position is equal.} Bg7 {[%emt 0:00:08]} 9. Rd1 {[%emt 0:00:01]} O-O {[%emt 0:00:38]} 10. e5 {[%emt 0:00:01]} dxe5 {[%emt 0:03:54]} 11. Nxe5 {[%emt 0:00:06]} Ne8 {[%emt 0:00:30] And now ...Qc7 would win.} 12. Bf4 {[%emt 0:00:33]} Nd6 {[%emt 0:00:48][%cal Og6g5] [#]} 13. Qe3 $146 {[%emt 0:02:24]} ({Predecessor:} 13. Qd5 Nxe5 14. Bxe5 Be6 15. Qd4 Nf5 16. Qf4 Bxe5 17. Qxe5 Qb8 18. Qe4 Nd6 19. Qh4 {1-0 (46) Zherebukh,Y (2620)-Li,E Chess.com INT 2020}) 13... Nxe5 {[%emt 0:02:24]} 14. Bxe5 {[%emt 0:00:03]} Bxe5 {[%emt 0:00:30]} 15. Qxe5 {[%emt 0:00:00]} Be6 {[%emt 0:00:40]} 16. Ne4 {[%emt 0:00:45][%cal Re4d6]} Qc7 {[%emt 0:01:02]} 17. c3 {[%emt 0:05:44][%cal Re4d6]} Rad8 {[%emt 0:03:27]} 18. Bf3 {[%emt 0:00:48][%cal Od1d6]} Nb5 {[%emt 0:00:31]} 19. Qg5 {[%emt 0:01:20]} Rxd1+ {[%emt 0:00:27]} 20. Rxd1 {[%emt 0:00:02]} Rd8 {[%emt 0:00:27]} 21. Rxd8+ {[%emt 0:00:44]} Qxd8 {[%emt 0:00:00]} 22. Nc5 {[%emt 0:00:57]} Bxa2 {[%emt 0:00:09]} 23. Nxb7 {[%emt 0:00:53]} Qd3 {[%emt 0:00:05] ( -> ...Qb1+)} 24. Qc1 {[%emt 0:00:50]} Nd6 {[%emt 0:00:40]} 25. Nc5 {[%emt 0:00:18]} Qb5 {[%emt 0:00:12]} 26. b4 {[%emt 0:00:39]} a5 {[%emt 0:00:05]} 27. Qa3 {[%emt 0:00:26]} axb4 {[%emt 0:00:03]} 28. cxb4 {[%emt 0:00:02]} Qc4 {[%emt 0:00:27]} 29. h3 {[%emt 0:00:21]} Nb5 {[%emt 0:00:09]} 30. Qa8+ {[%emt 0:00:07]} Kg7 {[%emt 0:00:02]} 31. Nd7 {[%emt 0:00:09][%csl Gd7][%cal Ra8f8]} Qc1+ {[%emt 0:00:13]} 32. Kh2 {[%emt 0:00:02][%csl Gd7][%cal Ra8f8]} Qc7+ {[%emt 0:00:02]} 33. g3 {[%emt 0:00:06]} ({White should play} 33. Kg1 $11 Qxd7 34. Qxa2) 33... Qxd7 $15 {[%emt 0:00:02]} 34. Qxa2 {[%emt 0:00:01][%mdl 4096] Endgame KQB-KQN} Qd4 {[%emt 0:00:06] Against Qc4} 35. Qe2 {[%emt 0:00:39][%csl LRb5,LRe7]} Qxb4 {[%emt 0:00:09]} 36. Qe5+ {[%emt 0:00:16]} f6 {[%emt 0:00:06]} 37. Qe3 {[%emt 0:00:28]} Nd4 {[%emt 0:00:13]} 38. Bg2 {[%emt 0:00:02]} Qd6 {[%emt 0:00:08]} 39. f4 {[%emt 0:00:14] [#]} ({White should try} 39. h4 $15) 39... h5 {[%emt 0:00:07]} (39... Nf5 $1 $17 {[%cal Rf5e3]} 40. Qe1 h5) 40. Be4 {[%emt 0:00:11]} e5 {[%emt 0:00:43]} 41. Kg2 {[%emt 0:00:51] This move loses the game for White.} (41. Bd3 $15) 41... h4 {[%emt 0:00:11]} 42. Bd3 {[%emt 0:00:32]} (42. Kf2 {is a better defense.}) 42... Qd5+ $19 {[%emt 0:00:16]} 43. Kg1 $2 {[%emt 0:00:14] [#]} (43. Kf2 $19 hxg3+ 44. Kxg3) 43... hxg3 {[%emt 0:00:13] Black mates.} 44. fxe5 {[%emt 0:00:13]} Nf3+ {[%emt 0:00:03]} 45. Kf1 {[%emt 0:00:08]} g2+ {[%emt 0:00:10]} 46. Kxg2 {[%emt 0:00:05]} Ne1+ $1 {[%emt 0:00:02]} 47. Kg3 {[%emt 0:00:08]} Qg2+ {[%emt 0:00:08]} 48. Kf4 {[%emt 0:00:05]} Qg5+ {[%emt 0:00:03]} 49. Ke4 {[%emt 0:00:03]} Qxe5# {[%emt 0:00:01] Weighted Error Value: White=0.25 (precise) /Black=0.06 (flawless)} 0-1

[Event "MPL-4 Indian Chess Tour 2022"]
[Site "Chess24"]
[Date "2022.09.27"]
[Round "12.8"]
[White "Mitrabha, Guha"]
[Black "Vaibhav, Suri"]
[Result "0-1"]
[ECO "E18"]
[WhiteElo "2471"]
[BlackElo "2600"]
[Annotator "TA"]
[PlyCount "76"]
[EventDate "2022.09.29"]
[EventType "tourn (rapid)"]
[EventCountry "NET"]
[SourceTitle "playchess.com"]
[Source "ChessBase"]
[SourceQuality "1"]
[WhiteTeam "India"]
[BlackTeam "India"]
[WhiteTeamCountry "IND"]
[BlackTeamCountry "IND"]
[TimeControl "900+10"]

{[%evp 19,76,33,35,19,31,11,31,10,9,27,6,17,37,29,50,48,57,11,42,0,47,54,72,0,0,0,0,0,0,0,39,35,25,-15,8,-99,-54,-32,0,-72,-75,-80,-54,-373,-368,-370,-365,-353,-349,-372,-368,-638,-653,-652,-648,-633,-653,-1050,-1007]} 1. Nf3 {[%emt 0:00:00]} d5 {[%emt 0:00:00]} 2. c4 {[%emt 0:00:04]} e6 {[%emt 0:00:02]} 3. g3 {[%emt 0:00:02]} Nf6 {[%emt 0:00:05]} 4. Bg2 {[%emt 0:00:01]} b6 {[%emt 0:00:00]} 5. cxd5 {[%emt 0:00:21]} exd5 {[%emt 0:00:02]} 6. d4 {[%emt 0:00:02]} Bb7 {[%emt 0:00:03]} 7. Nc3 {[%emt 0:00:01]} Be7 {[%emt 0:00:02]} 8. O-O {[%emt 0:00:05]} O-O {[%emt 0:00:01]} 9. Bf4 {[%emt 0:00:02]} Na6 {[%emt 0:00:02]} 10. Ne5 {[%emt 0:00:07]} c5 {[%emt 0:00:01]} 11. Qa4 {[%emt 0:00:04] E18: Queen's Indian: Old Main Line (4 g3 Bb7 5 Bg2 Be7 6 0-0 0-0 7 Nc3).} cxd4 {[%emt 0:00:01]} 12. Qxd4 {[%emt 0:00:33]} Qe8 {[%emt 0:00:01] [#]} 13. Qa4 $146 {[%emt 0:01:41] White is slightly better.} ({Much weaker is} 13. Bxd5 Nxd5 14. Nxd5 Bc5 $11) (13. Rfd1 $5 {[%cal Rc3d5]}) ({Predecessor:} 13. Nc4 Rd8 14. Ne3 Nb4 15. Nf5 Bc5 16. Qd2 Ne4 17. Qc1 Qe6 18. Bh3 Kh8 19. a3 Nxc3 20. bxc3 {½-½ (61) Varonen,M (2098)-Roynet,S (1991) ICCF email 2016}) 13... Qxa4 {[%emt 0:04:20]} 14. Nxa4 {[%emt 0:00:04]} Ne4 {[%emt 0:01:03]} 15. Rac1 {[%emt 0:00:04]} Rfe8 {[%emt 0:00:30]} 16. Rfd1 {[%emt 0:02:03]} Nac5 {[%emt 0:01:55]} 17. Nxc5 {[%emt 0:00:16]} bxc5 {[%emt 0:00:03]} 18. Nd3 {[%emt 0:00:52]} (18. Nd7 $14) 18... Ba6 {[%emt 0:02:05]} (18... g5 $5 {[%cal Rg5f4]} 19. Be3 d4 $11) 19. Kf1 {[%emt 0:01:12]} (19. Be3 $5 {[%cal Rd3f4]}) 19... Rac8 {[%emt 0:02:54]} (19... Bf8 $11) 20. Bh3 $14 {[%emt 0:00:16] [#] Strongly threatening f3.} Ra8 {[%emt 0:00:09]} 21. Bg2 {[%emt 0:02:27]} (21. Bd7 $16) 21... Bf8 {[%emt 0:00:19]} 22. h4 {[%emt 0:01:11]} h6 {[%emt 0:00:27]} 23. h5 {[%emt 0:00:12]} Rad8 {[%emt 0:00:46]} 24. Bf3 {[%emt 0:00:28]} g5 {[%emt 0:00:12]} 25. hxg6 $1 {[%emt 0:00:04]} fxg6 {[%emt 0:00:01]} 26. Kg2 {[%emt 0:00:47]} c4 {[%emt 0:00:27]} 27. Ne1 {[%emt 0:00:50]} (27. Ne5 $11) 27... d4 {[%emt 0:00:10][%cal Bd5d4,Bd4d3][%mdl 32]} 28. Nc2 {[%emt 0:00:19]} Bc5 {[%emt 0:00:12]} 29. Bc7 {[%emt 0:01:43]} (29. Bxh6 $11 c3 30. b4) 29... Rd7 $36 {[%emt 0:00:04][%mdl 2048] Keeping White busy.} 30. Ba5 {[%emt 0:00:02]} d3 {[%emt 0:01:54] Black is more active.} 31. Ne3 $2 {[%emt 0:01:44][%mdl 8192] [#] Loses the game.} (31. exd3 $15 Nxf2 32. Re1 Rxe1 33. Nxe1) 31... Nxf2 $1 $19 {[%emt 0:00:10][%cal Be4f2,Bf2d1,Bd1e3][%mdl 544]} 32. Nd5 {[%emt 0:00:02] Nf6+ is the strong threat.} (32. Ng4 Nxd1) 32... Nxd1 {[%emt 0:00:49]} 33. Nf6+ {[%emt 0:00:23]} Kf7 {[%emt 0:00:27]} 34. Nxd7 {[%emt 0:00:00]} Ne3+ {[%emt 0:00:06]} 35. Kf2 $2 {[%emt 0:00:10]} (35. Kh1 Bd6 36. exd3) 35... Bd4 {[%emt 0:00:06] And now ...dxe2 would win. Black is clearly winning.} 36. exd3 {[%emt 0:00:26]} cxd3 {[%emt 0:00:04]} 37. Bc3 {[%emt 0:00:03]} d2 {[%emt 0:00:36]} 38. Rh1 {[%emt 0:01:01]} d1=Q {[%emt 0:00:24] Weighted Error Value: White=0.73/Black=0.13 (very precise)} 0-1

[Event "MPL-4 Indian Chess Tour 2022"]
[Site "Chess24"]
[Date "2022.09.27"]
[Round "13.8"]
[White "Narayanan.S.L"]
[Black "Adhiban, B.."]
[Result "1-0"]
[ECO "A46"]
[WhiteElo "2657"]
[BlackElo "2603"]
[Annotator "TA"]
[PlyCount "95"]
[EventDate "2022.09.29"]
[EventType "tourn (rapid)"]
[EventCountry "NET"]
[SourceTitle "playchess.com"]
[Source "ChessBase"]
[SourceQuality "1"]
[WhiteTeam "India"]
[BlackTeam "India"]
[WhiteTeamCountry "IND"]
[BlackTeamCountry "IND"]
[TimeControl "900+10"]

{[%evp 9,95,26,24,25,30,24,55,0,0,0,0,0,0,0,0,-11,10,0,0,-22,0,0,0,0,0,0,0,0,0,-16,20,17,41,21,47,26,29,20,38,46,77,80,67,77,263,200,378,364,387,386,562,547,852,579,588,588,588,583,563,540,570,549,569,547,516,493,1249,1246,1390,1252,1144,1198,1139,1108,1098,1065,1010,992,945,953,841,823,1693,792,702,0,29989,29989]} 1. d4 {[%emt 0:00:00]} Nf6 {[%emt 0:00:00]} 2. Nf3 {[%emt 0:00:11]} d6 {[%emt 0:00:13]} 3. Nc3 {[%emt 0:00:05]} Bf5 {[%emt 0:00:02]} 4. Nh4 {[%emt 0:00:02]} Bd7 {[%emt 0:00:01]} 5. e4 {[%emt 0:00:02]} e5 {[%emt 0:00:01]} 6. Nf3 {[%emt 0:00:00][%cal Bh4f3,Bf3d4,Bd4e2,Be2f4][%mdl 32] A46: 1 d4 Nf6 2 Nf3 e6: Torre, London and Colle Systems.} exd4 {[%emt 0:00:27]} 7. Nxd4 {[%emt 0:00:02]} g6 {[%emt 0:00:04]} 8. g3 {[%emt 0:00:22]} (8. f3 $14) 8... Bg7 $11 {[%emt 0:00:02]} 9. Bg2 {[%emt 0:00:01]} O-O {[%emt 0:00:00]} 10. O-O {[%emt 0:00:01]} Nc6 {[%emt 0:00:01][%cal Of6e4]} 11. Nde2 {[%emt 0:00:19]} Re8 {[%emt 0:00:05][%cal Ob7b5] [#]} 12. Nf4 $146 {[%emt 0:00:01]} ({Predecessor:} 12. h3 b5 13. a3 a5 14. Bg5 Rb8 15. Nd5 h6 16. Bxf6 Bxf6 17. c3 Bg7 18. b4 {½-½ (65) Maghsoodloo,P (2679)-Adhiban,B (2689) Chess.com INT 2019}) 12... Ne5 {[%emt 0:00:19]} 13. Re1 {[%emt 0:00:03]} h5 {[%emt 0:00:13]} 14. h4 {[%emt 0:00:44]} Bg4 {[%emt 0:00:19]} 15. f3 {[%emt 0:00:03]} Bd7 {[%emt 0:00:02]} 16. b3 {[%emt 0:00:39]} b5 {[%emt 0:00:04][%cal Bb7b5,Bb5b4][%mdl 32]} 17. Be3 {[%emt 0:00:07]} b4 {[%emt 0:00:31]} 18. Ncd5 {[%emt 0:00:02]} Nxd5 {[%emt 0:00:38]} 19. Nxd5 {[%emt 0:00:01]} a5 {[%emt 0:00:01]} 20. Bg5 {[%emt 0:00:34]} f6 {[%emt 0:00:03]} 21. Be3 {[%emt 0:00:01]} Bc6 {[%emt 0:01:12]} 22. Qd2 {[%emt 0:00:07]} Kh7 {[%emt 0:00:07]} 23. Rad1 {[%emt 0:00:04]} Bxd5 {[%emt 0:00:35]} 24. Qxd5 {[%emt 0:00:18]} a4 {[%emt 0:00:02]} 25. f4 {[%emt 0:01:32][%cal Bf3f4,Bf4f5][%mdl 32] White is more active. Black is now going downhill.} Ng4 {[%emt 0:00:02]} 26. f5 $36 {[%emt 0:00:01][%mdl 2048] [#] Black must now prevent fxg6+. White has strong initiative.} g5 {[%emt 0:02:50]} (26... Ne5 $16) 27. Qf7 $18 {[%emt 0:00:31]} Nxe3 $2 {[%emt 0:02:47]} (27... Ne5 28. Qxh5+ Kg8 29. hxg5 fxg5) 28. Qxh5+ {[%emt 0:00:03]} Kg8 {[%emt 0:00:01]} 29. Rxe3 {[%emt 0:00:00][%cal Oe4e5] Threatens to win with e5! The board is on fire.} axb3 {[%emt 0:00:05]} (29... Re5 {was worth a try.} 30. Bf1 Rc5 31. Bc4+ Rxc4) 30. e5 {[%emt 0:00:19] Bd5+ would kill now.} Ra5 {[%emt 0:00:08]} 31. axb3 {[%emt 0:00:40][%cal Oe5f6] Hoping for exf6!} Rexe5 {[%emt 0:00:28]} 32. Rxe5 {[%emt 0:00:02]} Rxe5 {[%emt 0:00:01]} 33. Bd5+ {[%emt 0:00:01]} Rxd5 {[%emt 0:00:00]} 34. Rxd5 {[%emt 0:00:01][%mdl 4096] Endgame KQR-KQB} Qa8 {[%emt 0:00:07]} 35. Qf3 {[%emt 0:00:16]} gxh4 {[%emt 0:00:25]} 36. gxh4 {[%emt 0:00:02]} Bh6 {[%emt 0:00:01]} 37. Kg2 {[%emt 0:00:03]} Kh8 {[%emt 0:00:03]} (37... Qc6 $142 38. Qe4 Bd2) 38. Rd4 {[%emt 0:00:04]} Qa2 {[%emt 0:00:05]} 39. Qe2 {[%emt 0:00:05] White wants to mate with Qe8+.} Qa8+ {[%emt 0:00:04]} 40. Qe4 {[%emt 0:00:09]} Qg8+ {[%emt 0:00:02]} 41. Qg4 {[%emt 0:00:02]} Qe8 {[%emt 0:00:04]} 42. Re4 {[%emt 0:00:01]} Qc6 {[%emt 0:00:02]} 43. Kh3 {[%emt 0:00:07]} Qc3+ {[%emt 0:00:57]} 44. Qg3 {[%emt 0:00:02]} Qc6 {[%emt 0:00:01]} 45. Qd3 {[%emt 0:00:12]} Bg7 {[%emt 0:00:34]} 46. Kg4 {[%emt 0:00:08]} (46. Qe2 $142 Bf8 47. Qh5+ Kg8 48. Qg6+ Kh8 49. Qxf6+ Bg7 50. Qe7 Qc3+ 51. Kg4) 46... Kh7 {[%emt 0:00:05]} 47. Kh3 $2 {[%emt 0:00:38]} ({Better is} 47. Qc4 $18 Qa8 48. Qxb4) 47... Qb7 {[%emt 0:01:25][%mdl 8192] [#]} (47... Kh8 $11 48. Rxb4 Qh1+ 49. Kg4 Bf8) 48. Qf3 {[%emt 0:00:03] Weighted Error Value: White=0.42/Black=0.51} 1-0